bitfinex/quotes_ETHUSD_20260214
["timestamp","ask_amount","ask_price","bid_price","bid_amount"]
[1771074236766,2.53947446,2069.0,2067.9,0.001]
[1771074236937,2.53947446,2069.0,2067.9,0.928]
[1771074237342,2.53947446,2069.0,2067.9,0.001]
[1771074238765,2.53947446,2068.8,2067.9,0.001]
[1771074240750,2.53947446,2068.6,2067.9,0.001]
[1771074240966,2.53947446,2068.6,2067.7,0.001]
[1771074242290,2.53947446,2068.6,2067.1,1.20942061]
[1771074242499,2.53947446,2068.6,2066.9,2.14549844]
[1771074242911,2.52027472,2068.4,2066.9,2.14549844]
[1771074243202,2.52027472,2068.2,2066.9,2.14549844]
[1771074243416,2.52027472,2068.2,2066.6,4.83882768]
[1771074243417,2.52027472,2068.2,2066.6,1.20967291]
[1771074243580,2.52027472,2068.1,2066.5,1.161]
[1771074245003,2.52027472,2067.9,2066.5,2.37072112]
[1771074245388,2.52027472,2067.9,2066.6,5.353033]
[1771074245603,2.52027472,2067.9,2066.5,4.90714134]
[1771074245786,1.20889748,2068.0,2066.7,2.53642022]
[1771074246108,2.52027472,2067.9,2066.5,1.20972112]
[1771074246285,2.52027472,2067.9,2066.5,2.08072112]
[1771074246483,2.52027472,2067.9,2066.5,3.53672112]
[1771074247290,2.52027472,2067.7,2066.6,1.456]
[1771074249307,1.20913136,2067.6,2066.6,2.66567516]
[1771074251210,3.72939137,2067.7,2066.6,2.66567516]
[1771074251787,1.20911665,2067.7,2066.6,2.66567516]
[1771074252405,1.20895594,2067.9,2066.8,2.53642022]
[1771074253315,1.20895594,2067.9,2066.9,1.20954085]
[1771074254441,1.20895594,2067.9,2066.9,2.08054085]
[1771074255123,1.20895594,2067.9,2067.0,1.453]
[1771074255322,1.20895594,2067.9,2067.1,1.20942383]
[1771074256343,1.20887443,2068.1,2067.1,1.20942383]
[1771074259915,3.72914915,2068.1,2067.1,1.20942383]
[1771074260522,2.52027472,2068.0,2067.1,1.20942383]
[1771074260725,2.52027472,2068.0,2067.1,2.65842383]
[1771074260934,2.52027472,2068.0,2066.7,1.2096579]
[1771074261097,2.52027472,2068.0,2066.9,1.449]
[1771074262419,2.52027472,2067.8,2066.8,2.65756078]
[1771074262930,2.52027472,2067.7,2066.7,1.447]
[1771074263299,1.20895594,2067.9,2066.8,2.53642022]
[1771074265300,3.72911375,2068.1,2066.9,1.20954085]
[1771074266628,2.52027472,2068.0,2066.9,1.20954085]
[1771074266921,2.52027472,2068.0,2067.0,1.446]
[1771074267121,2.52027472,2068.0,2066.9,1.20954085]
[1771074267326,3.72923066,2067.9,2067.0,2.65547221]
[1771074267926,3.72923066,2067.9,2067.0,2.65547586]
[1771074268226,2.52027472,2067.8,2067.0,2.65547586]
[1771074268629,2.52027472,2067.8,2067.0,1.446]
[1771074269197,1.20907288,2067.7,2066.9,1.20949964]
[1771074269728,3.7293476,2067.7,2066.8,2.65356856]
[1771074269929,2.52027472,2067.6,2066.8,1.444]
[1771074270834,2.52027472,2067.6,2066.6,1.20967147]
[1771074271038,2.52027472,2067.6,2066.6,2.65367147]
[1771074271238,1.20918984,2067.5,2066.6,2.65367147]
[1771074271732,1.20918984,2067.5,2066.4,2.54168419]
[1771074271733,2.45909561,2067.4,2066.4,4.32347622]
[1771074272142,2.45909561,2067.4,2066.4,3.11368419]
[1771074272326,2.45909561,2067.4,2066.4,1.67068419]
[1771074272639,2.45909561,2067.4,2066.3,1.21084762]
[1771074273341,1.20926626,2067.4,2066.3,2.45734771]
[1771074274247,4.83657179,2067.6,2066.4,7.80938071]
[1771074274420,4.83657179,2067.6,2066.4,2.45634771]
[1771074274626,1.20913136,2067.6,2066.4,2.45634771]
[1771074274835,1.20913136,2067.6,2066.5,3.32734771]
[1771074275012,1.20913136,2067.6,2066.6,1.442]
[1771074275213,3.66805155,2067.9,2066.7,1.2096579]
[1771074276519,2.45909561,2067.8,2066.7,1.2096579]
[1771074277327,3.66816849,2067.7,2066.7,1.2096579]
[1771074277532,3.66816849,2067.7,2066.8,1.442]
[1771074277932,1.20899728,2067.9,2066.8,3.89834771]
[1771074278718,2.45909561,2067.8,2066.7,1.2096579]
[1771074279038,2.45909561,2067.8,2066.8,1.442]
[1771074280234,2.32508436,2067.6,2066.8,1.442]
[1771074280549,2.32508436,2067.6,2066.8,2.65158964]
[1771074282259,4.83629153,2067.8,2066.3,1.21083352]
[1771074282260,3.5342742,2067.5,2066.3,1.21083352]
[1771074282546,2.32508436,2067.4,2066.5,1.441]
[1771074284458,1.20930682,2067.3,2066.3,3.66870835]
[1771074284628,3.53439118,2067.3,2066.3,2.64983352]
[1771074284839,2.32508436,2067.2,2066.3,2.64983352]
[1771074285554,2.32508436,2067.2,2066.3,1.44]
[1771074285756,2.32508436,2067.2,2066.3,2.64988774]
[1771074286135,2.32508436,2067.2,2066.3,2.64988507]
[1771074286332,1.20942383,2067.1,2066.3,2.64988507]
[1771074288656,3.53448213,2067.2,2066.3,2.64988507]
[1771074288856,1.35,2067.4,2066.4,2.45787483]
[1771074289027,3.53431178,2067.5,2066.5,7.81090783]
[1771074289352,3.53431178,2067.5,2066.5,2.45787483]
[1771074289932,3.53431178,2067.5,2066.3,2.64988507]
[1771074290457,2.32508436,2067.4,2066.3,2.64988507]
[1771074290633,2.32508436,2067.4,2066.4,2.309]
[1771074292282,4.83652828,2067.6,2066.4,4.76687483]
[1771074292435,4.83652828,2067.6,2066.5,3.66764981]
[1771074292765,2.32508436,2067.5,2066.5,1.20977498]
[1771074293764,2.32508436,2067.5,2066.5,3.66764981]
[1771074293963,2.32508436,2067.5,2066.5,1.20977498]
[1771074294259,2.32508436,2067.5,2066.3,2.64887583]
[1771074294438,3.53433269,2067.4,2066.3,2.64887583]
[1771074294937,3.53433269,2067.4,2066.3,5.10675066]
[1771074296773,2.32508436,2067.3,2066.3,2.64887583]
[1771074297748,1.20924833,2067.4,2066.4,2.45787483]
[1771074297941,1.20923511,2067.5,2066.4,2.45787483]
[1771074298362,2.32508436,2067.4,2066.3,5.10775066]
[1771074298864,3.53439118,2067.3,2066.3,2.64987583]
[1771074299064,2.32508436,2067.2,2066.3,2.64987583]
[1771074299269,2.32508436,2067.2,2066.4,1.439]
[1771074300660,2.32508436,2067.2,2066.3,1.21087583]
[1771074300863,2.32508436,2067.0,2066.3,0.001]
[1771074301070,2.32508436,2067.0,2066.3,1.44]
[1771074301869,1.20942383,2067.1,2066.3,1.44]
[1771074302279,3.58716675,2067.1,2066.4,1.438]
[1771074302970,1.20954085,2066.9,2066.3,0.001]
[1771074303150,1.20954085,2066.9,2066.4,1.438]
[1771074304074,3.58728377,2066.9,2066.4,1.437]
[1771074304278,1.20954085,2066.9,2066.4,1.437]
[1771074305079,2.37774292,2067.0,2066.4,1.437]
[1771074305546,2.37774292,2067.0,2066.3,0.001]
[1771074305946,2.37774292,2067.0,2066.3,1.438]
[1771074306973,2.37774292,2067.0,2066.4,1.20983352]
[1771074307183,2.37774292,2067.4,2066.4,1.20983352]
[1771074308081,3.58684066,2067.7,2066.5,2.23095999]
[1771074308272,3.58775396,2068.0,2066.8,5.353033]
[1771074308479,3.58775396,2068.0,2066.9,4.53795999]
[1771074308657,2.37774292,2067.9,2066.9,2.307]
[1771074308857,2.37774292,2067.9,2067.0,0.928]
[1771074309080,2.37774292,2067.7,2067.0,1.173]
[1771074309862,2.37774292,2067.7,2066.7,7.0694094]
[1771074310064,1.20901441,2067.8,2066.8,4.53795999]
[1771074310270,3.58778636,2068.0,2066.9,2.23095999]
[1771074310449,0.0011,2068.0,2067.1,2.23095999]
[1771074310660,0.0011,2068.0,2067.2,2.23095999]
[1771074310851,0.0011,2068.0,2067.3,1.435]
[1771074311056,2.37774292,2068.3,2067.3,1.435]
[1771074311057,0.0011,2068.4,2067.5,3.44014983]
[1771074311273,0.0011,2068.4,2067.6,0.871]
[1771074311490,0.0011,2068.4,2067.8,5.353033]
[1771074311788,0.0011,2068.4,2067.9,1.435]
[1771074312985,0.0011,2068.4,2068.0,1.20889748]
[1771074313887,0.0011,2068.6,2068.0,1.20889748]
[1771074314368,0.0011,2069.2,2068.0,3.43985747]
[1771074314564,1.20929818,2069.2,2068.2,5.353033]
[1771074314775,0.0011,2069.2,2068.2,5.353033]
[1771074315182,0.0011,2069.2,2068.3,1.20872213]
[1771074315380,0.0011,2069.2,2068.4,5.208]
[1771074315693,0.0011,2069.2,2068.4,2.307]
[1771074316786,0.0011,2069.2,2068.4,4.53795999]
[1771074317106,0.0011,2069.4,2068.6,3.43950683]
[1771074317600,0.0011,2069.4,2068.7,5.353033]
[1771074317782,0.0011,2069.5,2068.8,5.353033]
[1771074317982,0.0011,2069.5,2068.9,1.436]
[1771074318601,0.0011,2069.5,2069.0,5.353033]
[1771074319103,0.0011,2069.7,2069.1,1.20825479]
[1771074319311,0.0011,2069.7,2069.2,0.87]
[1771074321095,0.0011,2069.7,2069.3,1.20813801]
[1771074321291,2.37774292,2070.2,2069.4,1.437]
[1771074322283,0.0011,2069.8,2069.4,1.437]
[1771074322604,0.0011,2069.8,2069.5,1.436]
[1771074323104,0.0011,2070.0,2069.6,1.20796289]
[1771074324188,2.37884292,2070.0,2069.4,1.437]
[1771074324510,2.37884292,2070.0,2069.5,1.437]
[1771074325586,0.0011,2070.0,2069.5,2.64496505]
[1771074326500,2.37884292,2070.0,2068.9,4.83328273]
[1771074326701,2.37884292,2070.0,2069.0,2.307]
[1771074326902,2.37884292,2070.0,2069.1,1.437]
[1771074328112,2.37774292,2069.8,2068.3,1.20872213]
[1771074328288,2.37774292,2069.8,2068.5,0.87]
[1771074328492,2.37774292,2069.8,2068.6,7.58399299]
[1771074328686,2.37774292,2069.8,2068.7,5.353033]
[1771074328888,2.37774292,2069.8,2068.6,2.23095999]
[1771074329209,2.37774292,2069.8,2068.7,5.353033]
[1771074329409,2.37774292,2069.8,2068.8,1.436]
[1771074330088,1.20790452,2069.7,2068.9,1.20837159]
[1771074330415,3.58564744,2069.7,2068.9,1.20837159]
[1771074330624,1.20887543,2070.0,2068.9,1.20837159]
[1771074330809,0.0011,2070.0,2069.0,7.58399299]
[1771074331050,0.0011,2070.0,2069.1,5.353033]
[1771074331204,0.0011,2070.0,2069.2,2.025]
[1771074331407,1.20883229,2070.0,2069.0,2.051]
[1771074331691,2.17294582,2069.9,2069.1,1.435]
[1771074332020,2.17294582,2069.9,2068.9,1.20837159]
[1771074332181,2.17294582,2069.7,2068.6,0.87]
[1771074332388,4.83138467,2069.9,2068.7,1.435]
[1771074332389,3.38077605,2069.9,2068.7,1.435]
[1771074332698,2.17294582,2069.8,2068.7,1.435]
[1771074333511,2.17294582,2069.8,2068.8,5.353033]
[1771074334313,2.17294582,2069.8,2068.9,1.20837159]
[1771074336308,2.17294582,2069.8,2068.8,4.83348639]
[1771074336618,2.17294582,2069.8,2068.9,5.353033]
[1771074337015,3.38079973,2069.8,2068.9,5.076]
[1771074337216,1.2088748,2070.0,2069.0,1.434]
[1771074337408,2.17294582,2069.9,2069.0,1.434]
[1771074338214,2.17294582,2069.9,2068.6,4.8340195]
[1771074338415,3.38079198,2069.8,2068.6,4.8340195]
[1771074338594,3.38079198,2069.8,2068.6,2.29493221]
[1771074339220,3.38079198,2069.8,2068.7,7.64796521]
[1771074339430,3.38079198,2069.8,2068.8,5.353033]
[1771074339715,3.38079198,2069.8,2068.9,1.433]
[1771074339716,2.17294582,2069.8,2068.9,1.433]
[1771074340810,2.17294582,2069.8,2069.0,1.20831319]
[1771074340811,2.16390434,2069.7,2069.0,1.20831319]
[1771074341196,2.16390434,2069.7,2068.9,2.03834119]
[1771074341395,2.16390434,2069.7,2068.9,1.20834119]
[1771074341596,2.16390434,2069.7,2068.7,2.64045113]
[1771074342727,2.16390434,2069.5,2068.7,2.64045113]
[1771074344924,3.37194971,2069.5,2068.7,2.64045113]
[1771074345121,2.16390434,2069.4,2068.7,2.64045113]
[1771074347025,3.37198818,2069.4,2068.7,2.64045113]
[1771074347622,2.16390434,2069.7,2068.7,2.64045113]
[1771074349011,7.58787891,2069.8,2068.8,7.53284683]
[1771074349211,2.16390434,2069.7,2068.7,2.64045113]
[1771074349808,2.16390434,2069.7,2068.7,1.20845113]
[1771074350013,2.16390434,2069.7,2068.8,1.432]
[1771074350537,4.70979215,2070.0,2068.8,3.61181383]
[1771074350705,4.7097778,2070.0,2068.9,2.17981383]
[1771074350902,3.50200434,2070.0,2069.0,1.20831319]
[1771074351128,3.50200434,2070.0,2069.1,5.353033]
[1771074351129,3.37273803,2070.0,2069.1,5.353033]
[1771074351504,2.16500434,2070.0,2069.1,5.353033]
[1771074352730,3.37273991,2070.0,2069.1,5.353033]
[1771074353238,2.16500434,2070.0,2069.2,1.2081964]
[1771074353408,2.16500434,2070.0,2069.3,1.431]
[1771074354235,3.37273909,2070.0,2069.3,1.431]
[1771074355833,0.0011,2070.0,2069.4,1.20807963]
[1771074356020,2.16500434,2070.0,2069.3,2.63909271]
[1771074356708,0.0011,2070.0,2069.3,2.63909271]
[1771074357141,0.0011,2070.0,2069.3,4.81890654]
[1771074358432,0.0011,2070.0,2069.3,2.63909271]
[1771074359417,0.0011,2070.0,2069.3,4.81890654]
[1771074360315,0.0011,2070.0,2069.4,5.353033]
[1771074360536,0.0011,2070.0,2069.5,5.353033]
[1771074360837,0.0011,2070.0,2069.6,1.433]
[1771074362133,0.0011,2070.0,2069.6,2.64094404]
[1771074363248,0.0011,2070.2,2069.6,2.64094404]
[1771074363406,2.20041757,2070.1,2069.2,1.2081964]
[1771074363611,2.20041757,2070.1,2069.3,2.304]
[1771074363810,2.20041757,2070.1,2069.2,1.2081964]
[1771074364020,2.20041757,2070.1,2069.3,1.434]
[1771074364223,2.20041757,2069.9,2069.3,2.64208075]
[1771074366136,2.20041757,2070.1,2069.3,2.64208075]
[1771074368449,2.20041757,2070.0,2069.3,2.64208075]
[1771074369526,3.40913183,2070.2,2069.3,2.64208075]
[1771074370138,2.20151757,2070.2,2069.3,2.64208075]
[1771074370643,3.40913423,2070.2,2069.3,2.64208075]
[1771074371546,3.40913423,2070.2,2069.3,1.20808075]
[1771074371547,2.20041757,2070.1,2069.3,1.20808075]
[1771074373856,0.0011,2070.2,2069.3,1.20808075]
[1771074374030,0.0011,2070.2,2069.5,5.353033]
[1771074374236,0.0011,2070.2,2069.5,2.97533561]
[1771074374441,0.0011,2070.3,2069.7,5.353033]
[1771074374646,0.0011,2070.3,2069.8,1.433]
[1771074375654,0.0011,2070.3,2069.9,1.20778781]
[1771074375859,0.0011,2070.5,2069.9,1.20778781]
[1771074376050,0.0011,2070.5,2070.0,5.353033]
[1771074376750,0.0011,2070.5,2070.0,3.001]
[1771074378060,0.0011,2070.5,2070.1,1.20767112]
[1771074378262,0.0011,2070.5,2070.2,1.436]
[1771074380167,0.0011,2070.5,2070.3,1.20755446]
[1771074380968,0.0011,2070.7,2070.3,1.20755446]
[1771074382062,0.0011,2070.7,2070.1,4.83067388]
[1771074382265,0.0011,2070.7,2070.4,1.44]
[1771074383636,0.0011,2070.9,2070.4,1.44]
[1771074383837,0.0011,2071.2,2070.5,5.353033]
[1771074384238,0.0011,2071.2,2070.6,1.2073795]
[1771074384438,0.0011,2071.2,2070.7,5.353033]
[1771074384683,0.0011,2071.2,2070.8,1.441]
[1771074385738,0.0011,2071.2,2070.6,1.2073795]
[1771074385940,2.20151757,2071.2,2070.7,1.441]
[1771074386371,2.20151757,2071.2,2070.8,1.20726289]
[1771074387066,0.0011,2071.2,2070.8,1.20726289]
[1771074390269,0.0011,2071.4,2070.8,1.20726289]
[1771074393443,2.02976864,2071.4,2070.9,1.448]
[1771074394163,2.02976864,2071.4,2070.8,1.20726289]
[1771074394363,2.02976864,2071.4,2070.9,1.448]
[1771074394676,2.02976864,2071.4,2070.8,1.20726289]
[1771074394849,2.02866864,2071.3,2070.9,1.448]
[1771074395586,0.0011,2071.4,2070.9,1.448]
[1771074395887,2.02976864,2071.4,2071.0,1.448]
[1771074396649,2.02866864,2071.3,2071.0,1.447]
[1771074396847,0.0011,2071.4,2071.0,2.65412436]
[1771074398983,0.0011,2071.4,2071.0,2.65414052]
[1771074399998,2.02976864,2071.7,2071.0,2.65414052]
[1771074400300,2.02866864,2071.6,2071.1,1.449]
[1771074400896,2.02866864,2071.6,2071.2,1.449]
[1771074401093,2.02162694,2071.5,2071.2,1.449]
[1771074401299,2.02162694,2071.5,2071.1,1.20704329]
[1771074401499,2.02162694,2071.5,2071.2,1.449]
[1771074402294,1.20785518,2071.7,2071.1,1.20704329]
[1771074402465,1.20785518,2071.7,2071.1,2.65704329]
[1771074403477,3.22948212,2071.7,2071.1,1.20704329]
[1771074403673,2.02272694,2071.7,2071.2,1.45]
[1771074404180,2.02272694,2071.7,2071.1,2.65708594]
[1771074405102,3.22842361,2071.6,2071.1,1.45]
[1771074407413,2.02162694,2071.6,2071.1,2.65705416]
[1771074407711,0.0011,2071.7,2071.1,2.65705416]
[1771074408704,2.02162694,2071.6,2070.8,1.20724942]
[1771074408883,2.02162694,2071.6,2070.8,2.65824942]
[1771074409290,1.20685493,2071.5,2070.8,2.65824942]
[1771074409588,3.22848187,2071.5,2070.8,2.65824942]
[1771074410289,1.2068413,2071.6,2070.8,4.70726899]
[1771074411101,3.22846824,2071.6,2070.8,4.70726899]
[1771074411701,2.02162694,2071.6,2070.8,4.70726899]
[1771074411901,1.20680174,2071.6,2070.9,2.04901957]
[1771074412718,1.20788396,2071.7,2070.9,2.04901957]
[1771074413015,3.2295109,2071.7,2070.9,2.04901957]
[1771074413659,2.02162694,2071.6,2070.9,1.2071834]
[1771074414228,1.20788396,2071.7,2071.0,1.451]
[1771074415939,1.20788396,2071.7,2071.1,1.20708802]
[1771074415940,0.0011,2071.7,2071.1,1.20708802]
[1771074416097,3.22948547,2071.7,2071.1,1.20708802]
[1771074416422,3.22948547,2071.7,2071.0,1.451]
[1771074416423,3.22948547,2071.7,2071.0,2.65809951]
[1771074417120,2.02162694,2071.6,2071.1,1.451]
[1771074418095,0.0011,2071.7,2071.1,2.65807393]
[1771074418503,2.02272694,2071.7,2071.1,1.451]
[1771074419422,0.0011,2071.7,2071.1,1.451]
[1771074419724,2.02272694,2071.7,2071.1,1.451]
[1771074420494,2.02272694,2071.7,2070.8,6.87792928]
[1771074420495,2.02162694,2071.5,2070.9,1.20716077]
[1771074420730,2.02162694,2071.5,2070.9,2.65816077]
[1771074421825,2.02162694,2071.5,2070.7,0.001]
[1771074422128,2.15783243,2071.4,2070.7,0.001]
[1771074422303,2.15783243,2071.4,2070.5,0.001]
[1771074422304,2.15783243,2071.3,2070.5,0.001]
[1771074422504,2.15783243,2071.1,2069.9,0.001]
[1771074422704,2.15783243,2070.9,2069.9,0.001]
[1771074422905,2.15783243,2070.9,2069.9,2.12796611]
[1771074424031,2.15783243,2070.9,2070.0,2.12696611]
[1771074424208,1.324,2071.0,2070.1,2.12796611]
[1771074424415,1.2071463,2071.0,2070.2,1.20761279]
[1771074424616,1.2071463,2071.0,2070.2,4.0685789]
[1771074424815,3.3649603,2071.1,2070.2,4.0685789]
[1771074425013,2.53099561,2071.3,2070.4,7.47999911]
[1771074425224,2.15783243,2071.2,2070.3,2.12696611]
[1771074425423,2.15783243,2071.2,2070.2,1.94161279]
[1771074426718,2.15783243,2071.0,2070.2,1.20761279]
[1771074427542,2.15783243,2070.9,2070.1,0.001]
[1771074428937,2.15783243,2070.7,2070.1,0.001]
[1771074431219,3.36521193,2070.6,2070.1,0.001]
[1771074431419,2.15783243,2070.5,2070.1,0.001]
[1771074431651,2.15783243,2070.5,2069.9,0.001]
[1771074432651,1.20730916,2070.8,2069.9,3.57396611]
[1771074433151,3.36514159,2070.8,2069.9,2.65473622]
[1771074434817,8.69473832,2070.6,2069.9,0.001]
[1771074435025,1.20743781,2070.5,2069.9,0.001]
[1771074436164,1.328,2070.7,2069.9,0.001]
[1771074436389,4.69319335,2070.7,2069.9,0.001]
[1771074436558,2.15783243,2070.6,2069.9,0.001]
[1771074437397,8.69473832,2070.4,2069.9,0.001]
[1771074438945,1.20741411,2070.6,2069.9,0.001]
[1771074439185,1.331,2070.5,2069.9,0.001]
[1771074439688,2.53844245,2070.5,2069.9,0.001]
[1771074440051,1.20740924,2070.6,2069.9,0.001]
[1771074442272,1.331,2070.7,2069.9,2.12796611]
[1771074442779,1.20717919,2071.0,2070.1,2.12696611]
[1771074443079,3.36501162,2071.0,2070.1,2.12696611]
[1771074443274,2.15783243,2070.9,2070.0,1.442]
[1771074443578,2.15783243,2070.9,2069.9,3.56996611]
[1771074443753,2.15783243,2070.9,2070.0,2.12696611]
[1771074444157,1.20717919,2071.0,2070.1,1.20767112]
[1771074445175,3.36501162,2071.0,2070.1,1.20767112]
[1771074445988,3.36501162,2071.0,2070.1,3.33463723]
[1771074447772,2.15783243,2070.9,2070.1,1.20767112]
[1771074447972,2.15783243,2070.9,2070.0,1.20769232]
[1771074448787,1.20717063,2071.0,2070.1,2.12696611]
[1771074448993,2.15783243,2071.1,2070.1,2.12696611]
[1771074449675,1.20814719,2071.2,2070.3,2.12696611]
[1771074450389,0.0011,2071.2,2070.3,2.12696611]
[1771074450761,0.0011,2071.2,2070.5,2.12696611]
[1771074450962,0.0011,2071.2,2070.6,2.12696611]
[1771074451389,1.20784228,2071.7,2070.8,1.92709885]
[1771074451690,1.2078428,2071.7,2070.8,1.92709885]
[1771074451891,0.0011,2071.7,2070.8,1.92709885]
[1771074452093,1.20787728,2071.7,2070.8,1.92709885]
[1771074452298,3.25070936,2071.7,2070.8,1.92709885]
[1771074452990,0.0011,2071.7,2070.9,2.88430344]
[1771074453493,0.0011,2071.8,2071.0,1.92709885]
[1771074453795,0.0011,2071.8,2070.9,0.95720459]
[1771074453796,0.0011,2071.8,2071.2,1.92709885]
[1771074455103,0.0011,2071.8,2071.3,1.20697146]
[1771074455800,0.0011,2071.8,2071.3,3.13407031]
[1771074456001,0.0011,2071.5,2071.3,3.13407031]
[1771074456899,0.0011,2071.5,2071.3,1.20697146]
[1771074457803,0.0011,2071.5,2071.2,6.75498471]
[1771074459201,0.0011,2071.5,2071.2,3.13412859]
[1771074459363,0.0011,2071.5,2071.2,2.98412859]
[1771074461197,0.0011,2071.5,2071.2,1.20702974]
[1771074461418,0.0011,2071.5,2071.3,1.446]
[1771074462701,0.0011,2071.5,2071.3,3.4932598]
[1771074463005,0.0011,2071.5,2071.4,1.20691319]
[1771074464015,0.0011,2071.7,2071.4,1.20691319]
[1771074465723,0.0011,2071.7,2071.5,1.451]
[1771074468093,0.0011,2071.7,2071.3,1.453]
[1771074469419,3.1464321,2071.7,2071.0,1.20812309]
[1771074469600,1.93859368,2071.6,2071.0,0.001]
[1771074469803,1.93859368,2071.6,2071.0,2.66113914]
[1771074470622,1.20783842,2071.7,2071.2,2.0472598]
[1771074470623,0.0011,2071.7,2071.2,2.0472598]
[1771074471043,0.0011,2071.7,2071.0,4.70839894]
[1771074471321,1.93969368,2071.7,2071.0,1.20813914]
[1771074471519,3.14648826,2071.7,2071.1,1.454]
[1771074471697,1.20789458,2071.7,2071.1,1.454]
[1771074473994,0.0011,2071.8,2071.3,2.0472598]
[1771074474235,1.93969368,2071.8,2071.1,2.66104217]
[1771074474437,1.93969368,2071.8,2071.2,1.455]
[1771074475505,1.93969368,2071.8,2070.8,2.9172598]
[1771074475506,1.93859368,2071.6,2070.8,0.001]
[1771074475716,1.93859368,2071.6,2070.3,1.20752684]
[1771074475919,0.0011,2071.8,2070.6,2.0472598]
[1771074476097,0.0011,2071.8,2071.0,2.0472598]
[1771074476298,0.0011,2071.8,2071.1,3.5012598]
[1771074477900,0.0011,2071.8,2070.9,2.0472598]
[1771074478101,0.0011,2071.8,2071.2,1.454]
[1771074481603,0.0011,2071.8,2071.3,1.20697146]
[1771074481801,2.03079391,2071.8,2071.2,1.454]
[1771074482143,2.03079391,2071.8,2070.9,1.453]
[1771074482450,2.03079391,2071.8,2070.9,3.40497391]
[1771074483608,2.03079391,2071.8,2071.0,1.2071463]
[1771074484044,3.23748292,2071.8,2071.0,1.2071463]
[1771074484338,0.0011,2071.8,2071.0,3.15912021]
[1771074484705,1.20778752,2071.8,2071.0,3.15912021]
[1771074485134,0.0011,2071.8,2071.0,3.15912021]
[1771074485338,1.20779168,2071.8,2071.0,3.15912021]
[1771074485806,2.03079391,2071.8,2071.0,1.2071463]
[1771074487443,2.03079391,2071.8,2071.0,3.15912021]
[1771074487444,0.0011,2071.8,2071.0,3.15912021]
[1771074487741,0.0011,2071.8,2071.1,1.95197391]
[1771074487912,0.0011,2071.8,2071.2,1.20702974]
[1771074489510,0.0011,2071.8,2071.2,3.15900365]
[1771074491507,0.0011,2071.8,2071.2,1.20702974]
[1771074491717,0.0011,2071.8,2071.3,1.454]
[1771074492109,3.23643233,2071.7,2071.2,1.454]
[1771074492846,3.23643233,2071.7,2070.8,0.001]
[1771074492847,2.02969391,2071.6,2070.8,0.001]
[1771074493018,2.02969391,2071.4,2070.8,0.001]
[1771074493835,2.02969391,2071.2,2070.8,0.001]
[1771074494038,1.20708802,2071.1,2070.8,0.001]
[1771074494663,3.23676627,2071.2,2070.8,0.001]
[1771074497729,2.02969391,2071.6,2070.8,0.001]
[1771074497933,2.02969391,2071.3,2070.8,0.001]
[1771074499867,1.20702974,2071.2,2070.8,0.001]
[1771074500267,3.23671037,2071.3,2070.8,0.001]
[1771074500447,1.20693858,2071.4,2070.8,0.001]
[1771074500645,3.23663249,2071.4,2070.8,0.001]
[1771074501462,2.02969391,2071.3,2070.8,0.001]
[1771074503748,3.23670672,2071.3,2070.8,0.001]
[1771074504056,2.02969391,2071.3,2070.8,0.001]
[1771074504256,3.23666859,2071.3,2070.8,0.001]
[1771074508760,4.82769056,2071.4,2070.8,0.001]
[1771074508961,6.85738447,2071.4,2070.8,0.001]
[1771074512177,1.20691319,2071.4,2070.8,0.001]
[1771074512375,1.20691319,2071.4,2070.8,1.91724969]
[1771074513277,1.20691319,2071.4,2070.8,3.12447418]
[1771074514351,1.319,2071.5,2070.8,3.12447418]
[1771074514758,1.92665264,2071.4,2070.8,0.001]
[1771074515482,1.20697146,2071.3,2070.8,0.001]
[1771074516567,2.52588333,2071.5,2070.8,1.91724969]
[1771074516754,1.20791188,2071.6,2070.8,1.91724969]
[1771074517850,1.20791188,2071.6,2070.9,1.20720459]
[1771074518079,0.0011,2071.6,2070.9,3.12345428]
[1771074519881,0.0011,2071.6,2071.0,1.91624969]
[1771074522701,0.0011,2071.6,2071.0,3.12334239]
[1771074524399,0.0011,2071.6,2071.0,4.56634239]
[1771074524600,0.0011,2071.6,2071.1,1.89884838]
[1771074524913,0.0011,2071.6,2071.1,1.20704586]
[1771074525079,0.0011,2071.6,2071.0,4.5489512]
[1771074526808,1.20789667,2071.6,2071.0,4.5489512]
[1771074527318,0.0011,2071.6,2071.0,4.5489512]
[1771074527478,0.0011,2071.6,2071.1,1.89884838]
[1771074528776,0.0011,2071.6,2071.3,1.89884838]
[1771074529219,0.0011,2071.6,2071.2,1.20702974]
[1771074530022,0.0011,2071.6,2071.2,3.10587812]
[1771074531100,0.0011,2071.6,2071.3,1.45]
[1771074531298,0.0011,2071.6,2071.3,3.34884838]
[1771074531504,0.0011,2071.6,2071.3,1.45]
[1771074531926,0.0011,2071.8,2071.4,1.89884838]
[1771074533648,0.0011,2072.0,2071.5,9.63714177]
[1771074533802,0.0011,2072.0,2071.5,3.10570331]
[1771074534811,0.0011,2072.0,2071.6,1.89884838]
[1771074535012,0.0011,2072.0,2071.7,1.455]
[1771074536833,0.0011,2072.0,2071.7,2.66173702]
[1771074540347,0.0011,2072.0,2071.6,6.72602974]
[1771074540348,0.0011,2072.0,2071.6,1.20675001]
[1771074540513,0.0011,2072.0,2071.7,1.46]
[1771074542745,0.0011,2072.0,2071.7,2.66673163]
[1771074543124,0.0011,2072.0,2071.7,4.34011479]
[1771074544441,0.0011,2072.0,2071.7,2.66673163]
[1771074544742,0.0011,2072.0,2071.8,1.67338316]
[1771074544942,0.0011,2072.0,2071.9,2.8800051]
[1771074545835,0.0011,2072.0,2071.9,1.20662194]
[1771074546923,0.0011,2072.0,2071.8,4.82664936]
[1771074547232,0.0011,2072.2,2071.9,1.67338316]
[1771074547422,0.0011,2072.2,2072.0,1.469]
[1771074548549,0.0011,2072.2,2072.0,3.14238316]
[1771074549049,0.0011,2072.4,2072.1,2.87988863]
[1771074550947,0.0011,2072.4,2072.2,1.67338316]
[1771074551152,0.0011,2072.4,2072.3,2.68338903]
[1771074551560,0.0011,2072.4,2072.3,1.477]
[1771074554354,0.0011,2072.4,2072.3,2.68338903]
[1771074554952,0.0011,2072.4,2072.3,1.477]
[1771074555328,0.0011,2072.4,2072.3,2.68338903]
[1771074558028,0.0011,2072.7,2072.3,2.68338903]
[1771074558428,0.0011,2072.7,2072.3,4.35677219]